Cogmind - Beta 16 @@@ ROGUE MODE // 2025.10.31 @ 14:53:29 Player: BOBIT Result: Destroyed by S-27 Virus with Autogun Performance ------------- Evolutions (6) 3000 Regions Visited (13) 2600 Robots Destroyed (31) 155 Value Destroyed (735) 735 Prototype IDs (8) 160 Alien Tech Used (0) 0 Bonus (1007) 1007 TOTAL SCORE: 7657 Bonus ------- Follower Combat Kills 7 Entered DSFs 1000 Cogmind --------- Core Integrity 0/1150 Matter 255/300 Energy 98/100 System Corruption 0% Temperature Cool (0) Movement Core (50) Location -4/Upper Caves Parts ------- > --- POWER (2) -------- (None) > --- PROPULSION (7) --- (None) > --- UTILITY (8) ------ Enhanced Optical Array Experimental Signal Interpreter Targeting Computer > --- WEAPON (2) ------- (None) > --- INVENTORY (5) ---- Improved Deuterium Engine Authchip [R/Combat] Peak State ------------ > --- POWER ------------ Angular Momentum Engine > --- PROPULSION ------- Xenon Bombardment Thruster Xenon Bombardment Thruster Xenon Bombardment Thruster Xenon Bombardment Thruster Xenon Bombardment Thruster Cooled Cesium-ion Thruster > --- UTILITY ---------- Small Storage Unit Experimental Sensor Array Targeting Computer Targeting Computer Improved Shield Generator > --- WEAPON ----------- (None) > --- INVENTORY -------- Improved Deuterium Engine Micro Nuclear Core Surge Thruster Xenon Bombardment Thruster Xenon Bombardment Thruster Xenon Bombardment Thruster Xenon Bombardment Thruster Authchip [R/Combat] [Rating: 50] Favorites ----------- Power Ion Engine Engine Ion Engine Power Core Nuclear Core Propulsion Xenon Bombardment Thruster Treads Light Treads Wheel Wheel Hover Unit Gravmag System Flight Unit Xenon Bombardment Thruster Utility Targeting Computer Device Experimental Sensor Array Storage Small Storage Unit Processor Targeting Computer Weapon Assault Cannon Energy Gun Medium Laser Ballistic Gun Light Assault Rifle Ballistic Cannon Assault Cannon Launcher Mini Grenade Launcher Special Weapon Mining Laser Build | -11 -10 -10 -9 -9 -8 -7 -7 -6 -5 -5 -4 -4 -4 ------- Run | Yrd Mat Min Mat Min Mat Fac DSF Fac Fac DSF Fac Upp Upp Slots Evolved 12 | . . . 2 . 2 2 . 2 2 . 2 . . Power 1 | . . . . . . . . . 1 . . . . Propulsion 5 | . . . . . 2 . . 2 1 . . . . Utility 6 | . . . 2 . . 2 . . . . 2 . . Weapon . | . . . . . . . . . . . . . . Parts Attached 55 | 5 5 2 5 6 10 . 8 4 . . 9 1 . Power 6 | . 1 . 1 . 1 . 2 1 . . . . . Engine 4 | . 1 . 1 . . . 1 1 . . . . . Core 2 | . . . . . 1 . 1 . . . . . . Reactor . | . . . . . . . . . . . . . . Propulsion 29 | 2 2 . . 3 7 . 5 3 . . 7 . . Treads 2 | . 2 . . . . . . . . . . . . Leg . | . . . . . . . . . . . . . . Wheel 2 | 2 . . . . . . . . . . . . . Hover 6 | . . . . . 5 . . . . . 1 . . Flight 19 | . . . . 3 2 . 5 3 . . 6 . . Utility 10 | 1 2 . 2 1 . . 1 . . . 2 1 . Device 3 | . . . . 1 . . 1 . . . 1 . . Storage 2 | 1 1 . . . . . . . . . . . . Processor 5 | . 1 . 2 . . . . . . . 1 1 . Hackware . | . . . . . . . . . . . . . . Protection . | . . . . . . . . . . . . . . Artifact . | . . . . . . . . . . . . . . Weapon 10 | 2 . 2 2 2 2 . . . . . . . . Energy Gun 2 | 2 . . . . . . . . . . . . . Energy Cannon . | . . . . . . . . . . . . . . Ballistic Gun 2 | . . 2 . . . . . . . . . . . Ballistic Cannon 2 | . . . 2 . . . . . . . . . . Launcher 3 | . . . . 1 2 . . . . . . . . Special Weapon 1 | . . . . 1 . . . . . . . . . Impact Weapon . | . . . . . . . . . . . . . . Slashing Weapon . | . . . . . . . . . . . . . . Piercing Weapon . | . . . . . . . . . . . . . . Special Melee Weapon . | . . . . . . . . . . . . . . Unidentified Prototypes 3 | . . . . 1 . . . 1 . . 1 . . Parts Lost 30 | . . . 1 1 4 . 6 . . 2 15 1 . Power 1 | . . . . . . . 1 . . . . . . Propulsion 23 | . . . 1 1 4 . 4 . . 2 10 1 . Utility 5 | . . . . . . . . . . . 5 . . Weapon 1 | . . . . . . . 1 . . . . . . Highest Loss Streak 16 | . . . 1 1 3 . 5 . . 2 15 16 . To Critical Strikes . | . . . . . . . . . . . . . . Average Backups 8 | 4 11 13 14 8 6 7 6 7 8 8 4 1 2 Power . | 1 1 . . . . . . 1 2 2 . 1 1 Propulsion 4 | 2 4 6 8 5 3 4 4 4 5 5 2 . . Utility 2 | . 4 5 3 . 1 3 1 1 1 1 1 . 1 Weapon 1 | 1 1 2 2 2 . . . . . . . . . Tool/Special . | . . . . . . . . . . . . . . Unused Backups 25 | . 4 2 1 5 5 . 5 1 . . 1 . 1 Power 2 | . 1 . . . . . . . . . 1 . . Propulsion 10 | . 2 2 . 1 3 . 2 . . . . . . Utility 7 | . . . . 2 . . 3 1 . . . . 1 Weapon 6 | . 1 . 1 2 2 . . . . . . . . Tool/Special . | . . . . . . . . . . . . . . Average Slot Usage (%) 74 | . 80 100 97 73 94 76 65 74 70 67 38 15 15 Engine 4 | . 3 14 11 1 . . 2 1 5 5 3 . . Core 1 | . . . . . 8 7 3 . . . . . . Treads 8 | . 18 28 20 . . . . . . . . . . Hover 1 | . . . . . 9 23 8 . . . . . . Flight 12 | . . . . 21 25 . 10 39 35 32 15 . . Device 4 | . . . . 7 9 7 9 13 11 11 3 . . Storage 8 | . 14 14 11 10 9 7 7 6 5 5 3 . . Processor 18 | . 9 14 32 25 18 15 15 13 11 11 10 15 15 Energy Gun 4 | . 23 18 . . . . . . . . . . . Ballistic Gun 1 | . . 9 3 . . . . . . . . . . Ballistic Cannon 3 | . . . 18 2 . . . . . . . . . Launcher 2 | . . . . 2 12 15 7 . . . . . . Peak Build Rating 50 | 5 8 8 16 16 32 32 39 50 50 50 42 20 14 Average Rating 19 | 3 6 7 14 13 24 32 29 45 50 48 30 14 14 On Entrance 23 | . 5 8 8 15 16 32 32 39 50 50 42 15 14 Avg Prop Armor Cover (%) 10 | . . . . 6 3 . . 13 2 2 15 . . Naked Turns . | . . . . . . . . . . . . . . Heaviest Build 35 | 8 28 28 35 8 16 15 20 23 23 23 23 . . Greatest Support 40 | 20 40 40 40 8 26 26 26 39 39 39 27 7 3 Greatest Overweight (x) 4 | . . . 1 . 1 . 4 . . . 1 . . Average Overweight (x) . | . . . . . . . . . . . . . . Largest Inventory Capacity 15 | 8 15 15 15 15 8 8 8 8 8 8 8 5 5 Average Capacity 10 | 7 14 15 15 8 8 8 8 8 8 8 7 5 5 Most Carried 15 | 8 15 15 15 15 8 8 8 8 8 8 8 2 2 Average Carried 9 | 4 12 13 14 8 7 8 7 7 8 8 4 1 2 Final Capacity 15 | 8 15 15 15 8 8 8 8 8 8 8 5 5 5 Final Carried 15 | 7 13 15 15 8 8 8 8 8 8 8 2 2 2 Class Distribution -------------------- 84% | Mutant 8% | Sprinter 7% | Scavenger-Sprinter Dominant Class ---------------- Mutant | -10/Materials Mutant | -10/Mines Mutant | -9/Materials Mutant | -9/Mines Scavenger-Sprinter | -8/Materials Mutant | -7/Factory Mutant | -7/DSF Mutant | -6/Factory Mutant | -5/Factory Sprinter | -5/DSF Sprinter | -4/Factory Mutant | -4/Upper Caves Mutant | -4/Upper Caves Resources | -11 -10 -10 -9 -9 -8 -7 -7 -6 -5 -5 -4 -4 -4 ----------- Run | Yrd Mat Min Mat Min Mat Fac DSF Fac Fac DSF Fac Upp Upp Matter Collected 946 | 206 114 20 185 68 . . 85 . . . 168 100 . Remotely . | . . . . . . . . . . . . . . Salvage Created 630 | . 175 87 221 49 98 . . . . . . . . Parts 51 | . 16 11 17 5 2 . . . . . . . . Haulers Intercepted . | . . . . . . . . . . . . . . Recyclers Shooed . | . . . . . . . . . . . . . . Parts Field Recycled . | . . . . . . . . . . . . . . Retrieved Matter . | . . . . . . . . . . . . . . Parts Self-Destructed . | . . . . . . . . . . . . . . Prevented . | . . . . . . . . . . . . . . Parts Restored . | . . . . . . . . . . . . . . Kills | -11 -10 -10 -9 -9 -8 -7 -7 -6 -5 -5 -4 -4 -4 ------- Run | Yrd Mat Min Mat Min Mat Fac DSF Fac Fac DSF Fac Upp Upp Combat Hostiles Destroyed 30 | . 8 5 9 5 3 . . . . . . . . Guns 17 | . 8 5 4 . . . . . . . . . . Cannons 8 | . . . 5 3 . . . . . . . . . AOE 5 | . . . . 2 3 . . . . . . . . Classes Destroyed 4 | . 2 . 2 . . . . . . . . . . Watcher 1 | . . . 1 . . . . . . . . . . Swarmer 18 | . 6 5 4 3 . . . . . . . . . Grunt 9 | . 2 . 3 2 2 . . . . . . . . Sentry 3 | . . . 2 . 1 . . . . . . . . Best Kill Streak 8 | . 8 3 4 5 3 . . . . . . . . Combat Bots Only 8 | . 8 3 4 5 3 . . . . . . . . Max Kills in Single Turn 2 | . 2 1 2 2 2 . . . . . . . . Gunslinging 1 | . 1 . 1 . . . . . . . . . . Exploded 2 | . . . . 2 2 . . . . . . . . Melee . | . . . . . . . . . . . . . . Uniques/NPCs Destroyed . | . . . . . . . . . . . . . . Combat | -11 -10 -10 -9 -9 -8 -7 -7 -6 -5 -5 -4 -4 -4 -------- Run | Yrd Mat Min Mat Min Mat Fac DSF Fac Fac DSF Fac Upp Upp Hostile Shots Fired 480 | . 37 34 25 12 50 . 17 21 . 6 232 18 28 Missed 247 | . 14 8 8 5 24 . 8 15 . 5 141 8 11 Hits 233 | . 23 26 17 7 26 . 9 6 . 1 91 10 17 Melee 1 | . . . . . . . 1 . . . . . . Projectile 232 | . 23 26 17 7 26 . 8 6 . 1 91 10 17 AOE 4 | . . . . . . . 2 . . 2 . . . Critical Strikes 4 | . . . . . 1 . 2 . . . 1 . . Damage Taken 3745 | . 249 218 195 135 405 . 343 72 . 150 1418 271 289 Core 1590 | . 73 43 17 10 106 . 99 . . 86 637 248 271 Absorbed by Shields 29 | . . . . . . . 12 . . . 17 . . Core Remaining (%) 86 | 100 . 53 . 93 80 . 85 100 . 91 . . . Volleys Fired 56 | . 12 13 18 8 5 . . . . . . . . Largest 2 | . 2 2 2 2 2 . . . . . . . . Hottest 90 | . 90 90 74 74 60 . . . . . . . . Shots Fired 112 | . 24 26 36 16 10 . . . . . . . . Gun 60 | . 24 26 10 . . . . . . . . . . Cannon 42 | . . . 26 16 . . . . . . . . . Launcher 10 | . . . . . 10 . . . . . . . . Special . | . . . . . . . . . . . . . . Kinetic 52 | . . . 36 16 . . . . . . . . . Thermal 50 | . 24 26 . . . . . . . . . . . Explosive 10 | . . . . . 10 . . . . . . . . Electromagnetic . | . . . . . . . . . . . . . . Robot Hit Streak 14 | . 8 8 13 14 3 . . . . . . . . Robot Miss Streak 2 | . 1 2 2 1 1 . . . . . . . . Penetration Max . | . . . . . . . . . . . . . . Secondary Targets 6 | . 3 2 1 . . . . . . . . . . Max Gunslinging Chain 1 | . 1 1 1 . . . . . . . . . . Shots Hit Robots 81 | . 20 17 26 12 6 . . . . . . . . Core Hits 45 | . 11 5 11 6 12 . . . . . . . . Critical Kills . | . . . . . . . . . . . . . . Critical Parts Destroyed . | . . . . . . . . . . . . . . Critical Strikes 1 | . 1 . . . . . . . . . . . . Burn 1 | . 1 . . . . . . . . . . . . Melee Attacks . | . . . . . . . . . . . . . . Impact . | . . . . . . . . . . . . . . Slashing . | . . . . . . . . . . . . . . Piercing . | . . . . . . . . . . . . . . Sneak Attacks . | . . . . . . . . . . . . . . Combat Hostiles . | . . . . . . . . . . . . . . Follow-up Attacks . | . . . . . . . . . . . . . . Damage Inflicted 1875 | . 242 235 500 441 451 . . 6 . . . . . Guns 526 | . 242 223 61 . . . . . . . . . . Cannons 763 | . . . 439 324 . . . . . . . . . Explosions 568 | . . . . 117 451 . . . . . . . . Melee . | . . . . . . . . . . . . . . Ramming 18 | . . 12 . . . . . 6 . . . . . Kinetic 824 | . . . 500 324 . . . . . . . . . Thermal 582 | . 242 223 . 117 . . . . . . . . . Explosive 451 | . . . . . 451 . . . . . . . . Electromagnetic . | . . . . . . . . . . . . . . Impact . | . . . . . . . . . . . . . . Slashing . | . . . . . . . . . . . . . . Piercing . | . . . . . . . . . . . . . . Highest Corruption 3 | . . . . . 3 . . . . . . . . Average Corruption 1 | . . . . . 1 . . . . . . . . Corruption Purged . | . . . . . . . . . . . . . . Corruption Blocked . | . . . . . . . . . . . . . . Effects 2 | . . . . . 2 . . . . . . . . Message Errors 1 | . . . . . 1 . . . . . . . . Data Loss (minor) 1 | . . . . . 1 . . . . . . . . Overload Shots . | . . . . . . . . . . . . . . Overflow Damage 25 | . . . 22 . 3 . . . . . . . . Projectiles 22 | . . . 22 . . . . . . . . . . Explosions 3 | . . . . . 3 . . . . . . . . Melee . | . . . . . . . . . . . . . . Knockbacks 6 | . . . 4 2 . . . . . . . . . Impact . | . . . . . . . . . . . . . . Kinetic 6 | . . . 4 2 . . . . . . . . . Secondary . | . . . . . . . . . . . . . . Self-Inflicted Damage 52 | . . . . 49 . . . 3 . . . . . Shots 1 | . . . . 1 . . . . . . . . . Rammed 4 | . . 2 . . . . . 2 . . . . . Targets Rammed 4 | . . 2 . . . . . 2 . . . . . Kicked . | . . . . . . . . . . . . . . Crushed . | . . . . . . . . . . . . . . Highest Temperature 270 | . 111 270 84 117 66 . . 141 65 . 7 . . Average Temperature 61 | . 43 113 31 53 32 . . 87 33 . 3 . . Received Heat Transfer 543 | . 102 . 69 45 198 . . 18 . . 93 9 9 Siege Activations . | . . . . . . . . . . . . . . Martial Activations . | . . . . . . . . . . . . . . Shielding Activations . | . . . . . . . . . . . . . . Robots Disrupted . | . . . . . . . . . . . . . . Combat Hostiles . | . . . . . . . . . . . . . . Robots Corrupted . | . . . . . . . . . . . . . . Combat Hostiles . | . . . . . . . . . . . . . . Parts Fried . | . . . . . . . . . . . . . . Impact Corruptions . | . . . . . . . . . . . . . . Robots Melted . | . . . . . . . . . . . . . . Combat Hostiles . | . . . . . . . . . . . . . . Parts Melted 1 | . 1 . . . . . . . . . . . . Heat Transferred 1451 | . 706 595 . 150 . . . . . . . . . Parts Sabotaged . | . . . . . . . . . . . . . . Parts Stolen . | . . . . . . . . . . . . . . Parts Stripped . | . . . . . . . . . . . . . . Power Chain Reactions . | . . . . . . . . . . . . . . Alert | -11 -10 -10 -9 -9 -8 -7 -7 -6 -5 -5 -4 -4 -4 ------- Run | Yrd Mat Min Mat Min Mat Fac DSF Fac Fac DSF Fac Upp Upp Maximum Alert Level 1 | . 1 . . . 1 . . . . . . . . Low Security (%) 95 | 100 85 100 100 100 78 100 100 100 100 100 100 . . Level 1 4 | . 14 . . . 21 . . . . . . . . Level 2 . | . . . . . . . . . . . . . . Level 3 . | . . . . . . . . . . . . . . Level 4 . | . . . . . . . . . . . . . . Level 5 . | . . . . . . . . . . . . . . High Security . | . . . . . . . . . . . . . . Max Security . | . . . . . . . . . . . . . . Peak Influence 294 | . 210 117 132 169 294 115 78 78 37 25 165 . . Initial 115 | . . 67 22 39 37 115 73 22 37 25 10 . . Average 84 | . 116 86 76 120 118 111 54 32 37 22 63 . . Influence Increases 1780 | . 256 120 250 239 367 . 30 128 . 15 345 30 . Destroy 0b10 Robot/C 620 | . 160 100 180 120 60 . . . . . . . . Destroy 0b10 Robot/NC 5 | . . . 5 . . . . . . . . . . Destroy Leader 132 | . 30 20 42 20 20 . . . . . . . . Allied During Kill 1 | . . . . 1 . . . . . . . . . Successful Hack 43 | . 6 . 7 8 14 . . 8 . . . . . Disable Machine 45 | . . . 15 15 15 . . . . . . . . Destroy Structure 79 | . . . 1 15 63 . . . . . . . . Partial Spotted 90 | . . . . . 60 . . 30 . . . . . Lose Combat Pursuer 765 | . 60 . . 60 135 . 30 90 . 15 345 30 . Influence Decreases 1760 | . 82 237 205 243 211 149 92 93 41 32 205 140 30 Entered New Map 591 | . . 107 35 63 61 139 32 21 41 12 10 60 10 Time Decay 869 | . 82 130 160 150 110 10 . 72 . . 65 70 20 Lost Part 280 | . . . 10 10 40 . 60 . . 20 130 10 . Lost Ally 20 | . . . . 20 . . . . . . . . . Squads Dispatched 16 | . . . 1 . 5 . 1 6 . 1 2 . . Investigation 10 | . . . 1 . 3 . . 5 . . 1 . . Extermination 1 | . . . . . . . . 1 . . . . . Reinforcement 4 | . . . . . 1 . 1 . . 1 1 . . Assault . | . . . . . . . . . . . . . . Garrison 1 | . . . . . 1 . . . . . . . . Intercept . | . . . . . . . . . . . . . . Searches Triggered . | . . . . . . . . . . . . . . Construction Impeded . | . . . . . . . . . . . . . . Haulers Reinforced . | . . . . . . . . . . . . . . Active Scanning Responses . | . . . . . . . . . . . . . . Cargo Convoy Interrupts . | . . . . . . . . . . . . . . Stealth | -11 -10 -10 -9 -9 -8 -7 -7 -6 -5 -5 -4 -4 -4 --------- Run | Yrd Mat Min Mat Min Mat Fac DSF Fac Fac DSF Fac Upp Upp Distress Signals 4 | . 2 . 1 . 1 . . . . . . . . Communications Jammed . | . . . . . . . . . . . . . . Distress Signals . | . . . . . . . . . . . . . . Times Spotted 131 | . 9 6 11 11 21 . 5 14 . 4 39 6 5 Peak Tracking Total 14 | . 6 3 4 4 10 . 2 8 . 4 14 4 5 Tactical Retreats 18 | . 1 . . 2 3 . 2 3 . 1 5 1 . Traps | -11 -10 -10 -9 -9 -8 -7 -7 -6 -5 -5 -4 -4 -4 ------- Run | Yrd Mat Min Mat Min Mat Fac DSF Fac Fac DSF Fac Upp Upp Traps Triggered 5 | . . . 1 . 2 . 1 1 . . . . . Indirectly . | . . . . . . . . . . . . . . Trap Hack Attempts . | . . . . . . . . . . . . . . Triggered . | . . . . . . . . . . . . . . Disarmed . | . . . . . . . . . . . . . . Reprogrammed . | . . . . . . . . . . . . . . Reused . | . . . . . . . . . . . . . . Traps Extracted . | . . . . . . . . . . . . . . Installed . | . . . . . . . . . . . . . . Triggered . | . . . . . . . . . . . . . . Machines | -11 -10 -10 -9 -9 -8 -7 -7 -6 -5 -5 -4 -4 -4 ---------- Run | Yrd Mat Min Mat Min Mat Fac DSF Fac Fac DSF Fac Upp Upp Machines Disabled 3 | . . . 1 1 1 . . . . . . . . Max in Single Turn 1 | . . . 1 1 1 . . . . . . . . Machines Repaired . | . . . . . . . . . . . . . . Machines Dismantled . | . . . . . . . . . . . . . . Machines Sabotaged . | . . . . . . . . . . . . . . Overloaded Fab Kills . | . . . . . . . . . . . . . . Hacking | -11 -10 -10 -9 -9 -8 -7 -7 -6 -5 -5 -4 -4 -4 --------- Run | Yrd Mat Min Mat Min Mat Fac DSF Fac Fac DSF Fac Upp Upp Machines Accessed 26 | . 2 . 2 1 6 2 . 8 1 . 3 . 1 Terminals 19 | . 2 . 2 1 5 2 . 5 1 . 1 . . Fabricators 3 | . . . . . . . . 2 . . 1 . . Repair Stations 1 | . . . . . . . . . . . 1 . . Recycling Units . | . . . . . . . . . . . . . . Scanalyzers 2 | . . . . . 1 . . 1 . . . . . Garrison Access . | . . . . . . . . . . . . . . Total Hacks 80 | . 9 . 8 6 19 3 . 27 1 . 6 . 1 Successful 40 | . 8 . 4 4 10 1 . 10 1 . 1 . 1 Failed 40 | . 1 . 4 2 9 2 . 17 . . 5 . . Catastrophic 7 | . . . . 1 2 . . 2 . . 2 . . Database Lockouts . | . . . . . . . . . . . . . . Manual 6 | . . . . 3 1 1 . 1 . . . . . Terminals 62 | . 9 . 8 6 15 3 . 18 1 . 2 . . Fabricators 8 | . . . . . . . . 6 . . 2 . . Repair Stations 2 | . . . . . . . . . . . 2 . . Recycling Units . | . . . . . . . . . . . . . . Scanalyzers 7 | . . . . . 4 . . 3 . . . . . Garrison Access . | . . . . . . . . . . . . . . Terminal Hacks 32 | . 8 . 4 4 6 1 . 7 1 . . . 1 Record 11 | . 4 . 2 3 . . . 2 . . . . . Part Schematic 1 | . . . . . . . . 1 . . . . . Robot Analysis 1 | . 1 . . . . . . . . . . . . Prototype ID Bank 3 | . 1 . 1 . 1 . . . . . . . . Open Door 1 | . . . . . . . . . . . . . 1 Open DSF 3 | . . . . . . 1 . 1 1 . . . . Branch Access Points 1 | . . . . 1 . . . . . . . . . Alert Level 2 | . 1 . . . 1 . . . . . . . . Dispatch Records 2 | . 1 . . . . . . 1 . . . . . Maintenance Status 1 | . . . . . . . . 1 . . . . . Surveillance Status 1 | . . . . . 1 . . . . . . . . Patrol Status 1 | . . . . . 1 . . . . . . . . Hauler Manifests 1 | . . . . . 1 . . . . . . . . Registered Components 1 | . . . 1 . . . . . . . . . . Zone Layout 2 | . . . . . 1 . . 1 . . . . . Fabricator Hacks 4 | . . . . . . . . 3 . . 1 . . Network Status 1 | . . . . . . . . 1 . . . . . Load Schematic 1 | . . . . . . . . 1 . . . . . Build 2 | . . . . . . . . 1 . . 1 . . Repair Station Hacks . | . . . . . . . . . . . . . . Recycling Unit Hacks . | . . . . . . . . . . . . . . Scanalyzer 4 | . . . . . 4 . . . . . . . . Insert Component 2 | . . . . . 2 . . . . . . . . Analyze 1 | . . . . . 1 . . . . . . . . Retrieve Study 1 | . . . . . 1 . . . . . . . . Garrison Access Hacks . | . . . . . . . . . . . . . . Unauthorized Hacks . | . . . . . . . . . . . . . . Terminals . | . . . . . . . . . . . . . . Fabricators . | . . . . . . . . . . . . . . Repair Stations . | . . . . . . . . . . . . . . Recycling Units . | . . . . . . . . . . . . . . Scanalyzers . | . . . . . . . . . . . . . . Garrison Access . | . . . . . . . . . . . . . . Data Cores Recovered . | . . . . . . . . . . . . . . Used . | . . . . . . . . . . . . . . Hacking Detections 22 | . 2 . 2 1 5 2 . 8 . . 2 . . Full Trace Events 10 | . 1 . 1 . 3 . . 4 . . 1 . . Feedback Events . | . . . . . . . . . . . . . . Feedback Blocked . | . . . . . . . . . . . . . . Robot Schematics Acquired . | . . . . . . . . . . . . . . Robots Built . | . . . . . . . . . . . . . . Authchips . | . . . . . . . . . . . . . . Time . | . . . . . . . . . . . . . . Total Robot Build Rating . | . . . . . . . . . . . . . . Part Schematics Acquired 2 | . . . . . 1 . . 1 . . . . . Parts Built 2 | . . . . . . . . 2 . . . . . Authchips . | . . . . . . . . . . . . . . Time 190 | . . . . . . . . 62 . . 128 . . Total Part Build Rating 4 | . . . . . . . . 4 . . . . . Part Studies Acquired 1 | . . . . . 1 . . . . . . . . Parts Repaired . | . . . . . . . . . . . . . . Time . | . . . . . . . . . . . . . . Parts Recycled . | . . . . . . . . . . . . . . Recycled Matter . | . . . . . . . . . . . . . . Retrieved Matter . | . . . . . . . . . . . . . . Retrieved Components . | . . . . . . . . . . . . . . Parts Scanalyzed 1 | . . . . . 1 . . . . . . . . Part Schematics Acquired 1 | . . . . . 1 . . . . . . . . Parts Damaged . | . . . . . . . . . . . . . . Bothacking | -11 -10 -10 -9 -9 -8 -7 -7 -6 -5 -5 -4 -4 -4 ------------ Run | Yrd Mat Min Mat Min Mat Fac DSF Fac Fac DSF Fac Upp Upp Used RIF Installer . | . . . . . . . . . . . . . . Robots Hacked . | . . . . . . . . . . . . . . Non-combat . | . . . . . . . . . . . . . . Combat . | . . . . . . . . . . . . . . Robot Hacks Applied . | . . . . . . . . . . . . . . Relay Couplers Released . | . . . . . . . . . . . . . . Fabnet Peak Effective % . | . . . . . . . . . . . . . . Robots Rewired . | . . . . . . . . . . . . . . Allies Hacked . | . . . . . . . . . . . . . . Hacks Repelled . | . . . . . . . . . . . . . . Allies | -11 -10 -10 -9 -9 -8 -7 -7 -6 -5 -5 -4 -4 -4 -------- Run | Yrd Mat Min Mat Min Mat Fac DSF Fac Fac DSF Fac Upp Upp Total Allies 1 | . . . . 1 . . . . . . . . . Largest Group 1 | . . . . 1 . . . . . . . . . Highest-Rated Group 31 | . . . . 31 . . . . . . . . . Highest-Rated Ally 31 | . . . . 31 . . . . . . . . . Total Orders . | . . . . . . . . . . . . . . Ally Attacks 10 | . . . . 10 . . . . . . . . . Total Damage 20 | . . . . 20 . . . . . . . . . Kills 1 | . . . . 1 . . . . . . . . . Allies Corrupted . | . . . . . . . . . . . . . . Allies Melted . | . . . . . . . . . . . . . . Intel | -11 -10 -10 -9 -9 -8 -7 -7 -6 -5 -5 -4 -4 -4 ------- Run | Yrd Mat Min Mat Min Mat Fac DSF Fac Fac DSF Fac Upp Upp Active Infowar (turns) 606 | . . . . 27 229 29 98 31 2 . . 142 48 Optics 190 | . . . . . . . . . . . . 142 48 Sensors 416 | . . . . 27 229 29 98 31 2 . . . . Robot Analysis Total 1 | . 1 . . . . . . . . . . . . Derelict Logs Recovered 3 | . . 1 . 1 . . . . . . . 1 . Drone Launches . | . . . . . . . . . . . . . . Drone Recoveries . | . . . . . . . . . . . . . . Exploration | -11 -10 -10 -9 -9 -8 -7 -7 -6 -5 -5 -4 -4 -4 ------------- Run | Yrd Mat Min Mat Min Mat Fac DSF Fac Fac DSF Fac Upp Upp Turns Passed 2100 | 55 191 272 322 306 237 29 98 188 19 22 170 143 48 Spaces Moved 3140 | 55 97 136 145 463 506 55 142 531 73 80 476 285 96 Core 368 | 13 . . . . . . 3 . . . 6 250 96 Treads 333 | . 52 136 145 . . . . . . . . . . Legs . | . . . . . . . . . . . . . . Wheels 87 | 42 45 . . . . . . . . . . . . Hover 261 | . . . . . 136 55 46 . . . 24 . . Flight 2091 | . . . . 463 370 . 93 531 73 80 446 35 . Fastest Speed 20 | 50 80 160 160 37 31 52 31 20 20 20 26 45 50 Average Speed 52 | 72 122 160 173 37 36 52 43 33 25 25 32 49 50 Slowest Speed 250 | 80 160 160 240 40 120 52 250 37 28 29 100 50 50 Overloaded Moves 167 | . . . . . . . . 55 21 32 59 . . Propulsion Burnouts . | . . . . . . . . . . . . . . Robots Hopped 44 | . . . . 5 7 . 1 9 . 1 20 1 . Potential Cave-ins . | . . . . . . . . . . . . . . Cave-ins Triggered . | . . . . . . . . . . . . . . Exploration Rate (%) 32 | 3 20 36 18 68 40 2 68 20 4 86 12 61 18 Regions Visited 13 Branch Regions 4 Pre-discovered Areas . | . . . . . . . . . . . . . . Known Exits Taken 3 | . . . . 1 . 1 . . 1 . . . . Unknown Exits Taken 8 | 1 1 1 1 . 1 . . 1 . . 1 1 . Scrap Searched 1 | . . . . . . . . . . . . 1 . Spaces Dug . | . . . . . . . . . . . . . . Terrain Destroyed 87 | . . . . 16 71 . . . . . . . . Melee . | . . . . . . . . . . . . . . Projectile 2 | . . . . 2 . . . . . . . . . AOE 85 | . . . . 14 71 . . . . . . . . Terrain Rammed . | . . . . . . . . . . . . . . Walls Destroyed . | . . . . . . . . . . . . . . Machines Disabled . | . . . . . . . . . . . . . . Actions | -11 -10 -10 -9 -9 -8 -7 -7 -6 -5 -5 -4 -4 -4 --------- Run | Yrd Mat Min Mat Min Mat Fac DSF Fac Fac DSF Fac Upp Upp Total 3458 | 68 148 165 185 583 541 54 180 531 74 79 469 285 96 Wait 105 | . 11 3 6 82 1 . 1 . . 1 . . . Move 3044 | 54 96 135 144 452 492 54 139 514 72 77 437 282 96 Hop 39 | . . . . 5 6 . 1 7 . 1 18 1 . Pick Up 67 | 9 13 4 4 8 12 . 13 1 1 . 1 1 . Fast Attach 27 | 3 1 2 3 5 5 . 3 2 . . 3 . . Attach 30 | 2 4 . 2 2 5 . 5 2 . . 7 1 . Detach 22 | . 3 2 3 6 3 . 2 2 . . 1 . . Swap 6 | . 2 . . 2 2 . . . . . . . . Drop 51 | . 6 4 5 13 10 . 9 1 1 . 2 . . Fire 56 | . 12 13 18 8 5 . . . . . . . . Melee . | . . . . . . . . . . . . . . Ram 2 | . . . . . . . . 2 . . . . . Kick . | . . . . . . . . . . . . . . Crush 2 | . . 2 . . . . . . . . . . . Escape Stasis 7 | . . . . . . . 7 . . . . . . Rewire . | . . . . . . . . . . . . . . Trap . | . . . . . . . . . . . . . . Miscellaneous . | . . . . . . . . . . . . . . Route ------- -11/Scrapyard -10/Materials -10/Mines -9/Materials -9/Mines -8/Materials -7/Factory (discovered 2 exits: Sto / DSF) -7/DSF -6/Factory -5/Factory -5/DSF -4/Factory -4/Upper Caves -4/Upper Caves History --------- Turn | Location | Event 4 | -11/Scrapyard | Discovered new exit (range 15) 56 | -11/Scrapyard | Entered Materials 190 | -10/Materials | Destroyed 8 combat bots 221 | -10/Materials | Discovered new exit (range 16) 247 | -10/Materials | Entered Mines 312 | -10/Mines | Build established: Mutant 332 | -10/Mines | Met a Derelict bent on vengeance 509 | -10/Mines | Discovered new exit (range 6) 519 | -10/Mines | Entered Materials 519 | -9/Materials | Evolved 2 slots: Utility x2 814 | -9/Materials | Discovered new exit (range 12) 841 | -9/Materials | Entered Mines 926 | -9/Mines | Identified exit to Materials 928 | -9/Mines | Found a damaged Exp. Sensor Array with a note attached 929 | -9/Mines | Found Prototype Device 929 | -9/Mines | Identified Exp. Sensor Array 984 | -9/Mines | Assembled infested the area 1042 | -9/Mines | Found a Scrap Suit stashed away for nefarious purposes 1044 | -9/Mines | Found Scrap Suit 1062 | -9/Mines | Received a Mining Laser from a helpful Derelict 1147 | -9/Mines | Entered Materials 1147 | -8/Materials | Evolved 2 slots: Propulsion x2 1345 | -8/Materials | Garrison activated, responded to threat 1367 | -8/Materials | Discovered new exit (range 10) 1384 | -8/Materials | Entered Factory 1384 | -7/Factory | Evolved 2 slots: Utility x2 1385 | -7/Factory | Identified exit to Storage 1401 | -7/Factory | Lost 3 parts (3n) 1412 | -7/Factory | Identified exit to DSF 1413 | -7/Factory | Entered DSF 1421 | -7/DSF | Discovered new exit (range 15) 1436 | -7/DSF | Additional patrols routed to DSF 1487 | -7/DSF | Lost 5 parts (1p3n1w) 1511 | -7/DSF | Entered Factory 1511 | -6/Factory | Evolved 2 slots: Propulsion x2 1657 | -6/Factory | Spotted B-75 Beast 1695 | -6/Factory | Fabricated Imp. Hover Unit? 1696 | -6/Factory | Discovered new exit (range 16) 1699 | -6/Factory | Entered another Factory area 1699 | -5/Factory | Evolved 2 slots: Power x1, Propulsion x1 1712 | -5/Factory | Identified exit to DSF 1718 | -5/Factory | Entered DSF 1737 | -5/DSF | Discovered new exit (range 16) 1740 | -5/DSF | Entered Factory 1740 | -4/Factory | Evolved 2 slots: Utility x2 1817 | -4/Factory | Found Prototype Processor 1817 | -4/Factory | Identified Exp. Signal Interpreter 1903 | -4/Factory | Discovered new exit (range 16) 1906 | -4/Factory | Core integrity fell below 50% 1910 | -4/Factory | Entered Upper Caves 1949 | -4/Upper Caves | Encountered a Warlord checkpoint 1955 | -4/Upper Caves | Learned Research garrison access intel 1958 | -4/Upper Caves | Lost 16 parts (11n5u) 2001 | -4/Upper Caves | Spotted B-86 Titan 2028 | -4/Upper Caves | Attracted the attention of an 0b10 checkpoint 2049 | -4/Upper Caves | Discovered new exit (range 6) 2053 | -4/Upper Caves | Entered another Upper Caves area 2076 | -4/Upper Caves | Core integrity fell below 20% 2101 | -4/Upper Caves | Destroyed by S-27 Virus with Autogun Last Messages --------------- 02008_ Acquired 5 matter. 02027_ Penetrated by Slug. 02028_ Y-64 Sentinel: "INTERCEPTING UNREGISTERED DERELICT." 02029_ Penetrated by Slug. 02040_ L-61 Swordsman sneak attacks. 02040_ BD-N4G(S) destroyed. 02041_ Acquired 42 matter. 02049_ EXIT=FOUND LOCATION=UNKNOWN GOAL=ESCAPE 02074_ Connecting with WAR.Sys... 02074_ Current location identified: Upper Caves >>Open Door Sealed Heavy Doors opened. 02074_ Penetrated by Slug. 02074_ Slug penetrates Wall. 02075_ Y-72 Warden: "ENEMY REINFORCEMENTS INCOMING." 02077_ Slug penetrates Wall. 02079_ WAR.Sys disabled. 02095_ P-70 Sage resets S-27 Virus, system corruption cleaned. Map ----- +----------------------------------------------------+ | ?????????????????????????????????????????????????? | | ?????????????????????????????????????????????????? | | ?????????????????????????????????????????????????? | | ?????????????????????????????????????????????????? | | ?????????????????????????????????????????????????? | | ?????????????????????????????????????????????????? | | ?????????????????????????????????????????????????? | | ?????????????????????????????????????????????????? | | ?????????????????????????????????????????????????? | | ?????????????????????????????????????????????????? | | ?????????????????????????????????##??????????????? | | ????????????????????????????????? ??????????????? | | ????????????????????????????????? ??????????????? | | ????????????????????????????????? ??????????????? | | ?????????????????????????????????# ??????????????? | | ????????????????????????????????## ??????????????? | | ????????????????????????????????# ??????????????? | | ????????????????????????#####???? ##??????###???? | | ???????????????????????## ##??? #?????## ##??? | | ???????????????????????# ##??# #?????# #??? | | ????????????????????????# #??# #????## ##?? | | ?????????????????????????# #??# #????# ### | | ???????????????????# ?????# #??# ##???# # | | ??????????????????## ??## #??# ##???# | | ?????????????????## ## #??# ###### | | ?????????????????# @ ##?# # ### | | ???????????????### ### #?## | | ???????? ss ### #??# | | ???????# #### ##?# #??# | | ???????# #### ???# ## #??# #??# | | ???????## ??????## ????# ### # #??#####??# | | ??????????????????# ?????## ##?# #?????????# | | ????????????????? ???????####??## # ?????????# | | ???????????????? ???????????????### ????????# | | ??????????????? ##??????????????????## #???????# | | ??????????????#???????????????????????# #????# ## | | ??????????????????????????????????????? #????# | | ??????????????????????????????????????? #????#### | | ????????????????????????????????????????#???????# | | ????????????????????????????????????????????????## | | ?????????????????????????????????????????????????# | | ?????????????????????????????????????????????????? | | ?????????????????????????????????????????????????? | | ?????????????????????????????????????????????????? | | ?????????????????????????????????????????????????? | | ?????????????????????????????????????????????????? | | ?????????????????????????????????????????????????? | | ?????????????????????????????????????????????????? | | ?????????????????????????????????????????????????? | | ?????????????????????????????????????????????????? | +----------------------------------------------------+ Best States ------------- Heat Dissipation 43 Energy Generation 18 Energy Capacity 300 Matter Stores 300 Matter Capacity 300 Sight Range 22 Robot Scan Range 20 Terrain Scan Density 10 Evasion (%) 74 Targeting Accuracy 15 Recoil Reduction 2 Authchip Count 1 Item Schematics ----------------- Imp. Hover Unit | -8/Materials | Scanalyzed Railgun | -6/Factory | Hacked Robot Schematics ------------------ None Fabricated ------------ Imp. Hover Unit | x2 | -6/Factory Repaired ---------- Nothing Studied --------- Imp. Hover Unit | -8/Materials | Hacked Alien Tech Used ----------------- None Achievements -------------- I Have A Map? Window Shopping Challenges ------------ None Game ------ Seed UtilityInertialReplicator Manual? 0 Play Time 00:46:04 Cumulative 49.9 hours Start 2025.10.31 @ 14:07:49 End 2025.10.31 @ 14:53:29 Sessions 1 Manual Loads 0 Difficulty Rogue Special Mode None Game No. 105 Rogue 105 Adventurer 0 Explorer 0 Win Type - Total 0 Types 0/0/0/0/0/0/0/0/0/0 Lore% 14 Gallery% 38 Achievement% 25 Wizard Run 0 Options --------- Layout 0 ASCII 0 Keyboard 0 Movement Numpad Keybinds 0 Fullscreen 1 Font 20/SmallcapsGlow Map View 66x50 Zoom Use 0% Tactical HUD 1 Map Filters NONE Filters NONE Steam 1 RUN: 0518b059-5330-4f15-876e-2cd341c46455